[Event "*** SCC Grand Prix: Titled Tuesday Blitz"]
[Site "Chess.com"]
[Date "2020.07.21"]
[Round "1"]
[White "nitpicker"]
[Black "Chessmasterzt"]
[Result "0-1"]
[WhiteElo "2225"]
[BlackElo "2577"]
[TimeControl "180+1"]
[EndTime "10:06:04 PDT"]
[Termination "Chessmasterzt won by resignation"]

1. d4 {[%clk 0:03:00.9]} 1... Nf6 {[%clk 0:02:59.5]} 2. c4 {[%clk 0:02:59.6]}
2... e6 {[%clk 0:02:59.9]} 3. Nf3 {[%clk 0:02:59.5]} 3... Bb4+ {[%clk
0:02:59.9]} 4. Nbd2 {[%clk 0:02:58.6]} 4... d5 {[%clk 0:02:52.4]} 5. e3 {[%clk
0:02:57.8]} 5... O-O {[%clk 0:02:51.5]} 6. a3 {[%clk 0:02:57.7]} 6... Be7 {[%clk
0:02:46.6]} 7. b4 {[%clk 0:02:57.3]} 7... b6 {[%clk 0:02:37.5]} 8. Be2 {[%clk
0:02:53.3]} 8... c5 {[%clk 0:02:30.8]} 9. b5 {[%clk 0:02:49.4]} 9... cxd4 {[%clk
0:02:24.3]} 10. Nxd4 {[%clk 0:02:43.2]} 10... e5 {[%clk 0:02:16.5]} 11. N4f3
{[%clk 0:02:39]} 11... e4 {[%clk 0:02:11.9]} 12. Nd4 {[%clk 0:02:31]} 12... a6
{[%clk 0:02:05.5]} 13. O-O {[%clk 0:02:04.2]} 13... dxc4 {[%clk 0:02:05.7]} 14.
Nxc4 {[%clk 0:01:56.5]} 14... axb5 {[%clk 0:02:06]} 15. Nxb5 {[%clk 0:01:55.6]}
15... Nbd7 {[%clk 0:01:53.1]} 16. Bb2 {[%clk 0:01:45.9]} 16... Ba6 {[%clk
0:01:52.3]} 17. a4 {[%clk 0:01:34.7]} 17... Nc5 {[%clk 0:01:34.5]} 18. Qxd8
{[%clk 0:01:21.6]} 18... Bxd8 {[%clk 0:01:35.4]} 19. Ne5 {[%clk 0:01:13.8]}
19... Rc8 {[%clk 0:01:16.6]} 20. Rfc1 {[%clk 0:00:53.7]} 20... Be7 {[%clk
0:01:14.7]} 21. Nc4 {[%clk 0:00:45.6]} 21... Nb3 {[%clk 0:01:13.6]} 22. Nxb6
{[%clk 0:00:44.8]} 22... Rxc1+ {[%clk 0:01:04.9]} 23. Rxc1 {[%clk 0:00:43.5]}
23... Nxc1 {[%clk 0:01:04.7]} 24. Bxc1 {[%clk 0:00:44]} 24... Rb8 {[%clk
0:00:57.3]} 25. a5 {[%clk 0:00:26.7]} 25... Bd8 {[%clk 0:00:51.6]} 26. Bd2
{[%clk 0:00:18.9]} 26... Bxb6 {[%clk 0:00:51]} 27. axb6 {[%clk 0:00:18.4]} 27...
Rxb6 {[%clk 0:00:51.9]} 28. Nc3 {[%clk 0:00:16.7]} 28... Bxe2 {[%clk 0:00:51.2]}
0-1

[Event "*** SCC Grand Prix: Titled Tuesday Blitz"]
[Site "Chess.com"]
[Date "2020.07.21"]
[Round "1"]
[White "mbachez"]
[Black "exoticprincess"]
[Result "1/2-1/2"]
[WhiteElo "2429"]
[BlackElo "2835"]
[TimeControl "180+1"]
[EndTime "10:06:05 PDT"]
[Termination "Game drawn by agreement"]

1. e4 {[%clk 0:02:59.9]} 1... d6 {[%clk 0:03:00.1]} 2. d4 {[%clk 0:02:57.7]}
2... Nf6 {[%clk 0:03:00.5]} 3. Nc3 {[%clk 0:02:53.7]} 3... e5 {[%clk 0:03:00.6]}
4. Nf3 {[%clk 0:02:50.7]} 4... Nbd7 {[%clk 0:03:01]} 5. Bc4 {[%clk 0:02:38.6]}
5... Be7 {[%clk 0:03:01.2]} 6. a4 {[%clk 0:02:35.3]} 6... O-O {[%clk 0:03:00.3]}
7. O-O {[%clk 0:02:34.6]} 7... a5 {[%clk 0:03:00]} 8. Re1 {[%clk 0:02:29.5]}
8... h6 {[%clk 0:03:00]} 9. h3 {[%clk 0:02:26.4]} 9... Re8 {[%clk 0:03:00.2]}
10. Ba2 {[%clk 0:02:21.9]} 10... Bf8 {[%clk 0:02:58.3]} 11. dxe5 {[%clk
0:02:16.7]} 11... dxe5 {[%clk 0:02:58]} 12. Nh4 {[%clk 0:02:15.3]} 12... Nc5
{[%clk 0:02:52.2]} 13. Qf3 {[%clk 0:02:10.4]} 13... Be6 {[%clk 0:02:52]} 14. Nf5
{[%clk 0:02:09.4]} 14... Bxa2 {[%clk 0:02:51.5]} 15. Rxa2 {[%clk 0:02:09]} 15...
Ne6 {[%clk 0:02:49.9]} 16. Rd1 {[%clk 0:02:08.7]} 16... Nd4 {[%clk 0:02:48.8]}
17. Qe3 {[%clk 0:01:46]} 17... Nxf5 {[%clk 0:02:44.9]} 18. Rxd8 {[%clk
0:01:40.3]} 18... Nxe3 {[%clk 0:02:44.5]} 19. Rxa8 {[%clk 0:01:40.1]} 19... Rxa8
{[%clk 0:02:45.4]} 20. Bxe3 {[%clk 0:01:39.8]} 20... Rd8 {[%clk 0:02:39.1]} 21.
f3 {[%clk 0:01:36.7]} 21... Bb4 {[%clk 0:02:39]} 22. Kf1 {[%clk 0:01:32.2]}
22... Bxc3 {[%clk 0:02:10.1]} 23. bxc3 {[%clk 0:01:33.1]} 23... Ne8 {[%clk
0:02:09]} 24. Rb2 {[%clk 0:01:31.1]} 24... b6 {[%clk 0:02:05.6]} 25. c4 {[%clk
0:01:30.4]} 25... Nd6 {[%clk 0:02:05.8]} 26. c5 {[%clk 0:01:28.1]} 26... Nc4
{[%clk 0:02:05.9]} 27. Rb3 {[%clk 0:01:28]} 27... Nxe3+ {[%clk 0:01:53]} 28.
Rxe3 {[%clk 0:01:28.9]} 28... Rd2 {[%clk 0:01:40.9]} 29. cxb6 {[%clk 0:01:26.2]}
29... cxb6 {[%clk 0:01:41.8]} 30. Rb3 {[%clk 0:01:26]} 30... Rxc2 {[%clk
0:01:41.2]} 31. Rxb6 {[%clk 0:01:25.8]} 31... Ra2 {[%clk 0:01:40]} 32. Rb5
{[%clk 0:01:23.3]} 32... Rxa4 {[%clk 0:01:40.1]} 33. Rxe5 {[%clk 0:01:23.3]}
33... Ra2 {[%clk 0:01:38.1]} 34. Re8+ {[%clk 0:01:22.9]} 34... Kh7 {[%clk
0:01:37.7]} 35. h4 {[%clk 0:01:21.9]} 35... Kg6 {[%clk 0:01:36.6]} 36. Kg1
{[%clk 0:01:20.3]} 36... Kh5 {[%clk 0:01:29.3]} 37. Kh2 {[%clk 0:01:17.3]} 37...
Kxh4 {[%clk 0:01:16.6]} 38. Re7 {[%clk 0:01:14.5]} 38... g5 {[%clk 0:01:16.5]}
39. Rxf7 {[%clk 0:01:12.5]} 39... h5 {[%clk 0:01:12.4]} 40. e5 {[%clk
0:00:56.3]} 40... g4 {[%clk 0:01:11.9]} 41. fxg4 {[%clk 0:00:54.1]} 41... hxg4
{[%clk 0:01:12.8]} 42. Rh7+ {[%clk 0:00:51.9]} 42... Kg5 {[%clk 0:01:13]} 43. e6
{[%clk 0:00:52]} 43... Kf6 {[%clk 0:01:10.4]} 44. e7 {[%clk 0:00:51]} 44... Re2
{[%clk 0:01:10.4]} 45. Rh5 {[%clk 0:00:49]} 1/2-1/2

[Event "*** SCC Grand Prix: Titled Tuesday Blitz"]
[Site "Chess.com"]
[Date "2020.07.21"]
[Round "1"]
[White "alexrustemov"]
[Black "Irochka83"]
[Result "1-0"]
[WhiteElo "2711"]
[BlackElo "2351"]
[TimeControl "180+1"]
[EndTime "10:06:06 PDT"]
[Termination "alexrustemov won on time"]

1. Nf3 {[%clk 0:02:58.8]} 1... c5 {[%clk 0:02:58.7]} 2. g3 {[%clk 0:02:57.6]}
2... Nc6 {[%clk 0:02:57.7]} 3. d4 {[%clk 0:02:57.5]} 3... cxd4 {[%clk
0:02:56.2]} 4. Nxd4 {[%clk 0:02:58.4]} 4... g6 {[%clk 0:02:49.3]} 5. Bg2 {[%clk
0:02:58.5]} 5... Bg7 {[%clk 0:02:49.4]} 6. Nb3 {[%clk 0:02:58.1]} 6... Nf6
{[%clk 0:02:47.3]} 7. O-O {[%clk 0:02:57.5]} 7... d5 {[%clk 0:02:41.8]} 8. Nc3
{[%clk 0:02:56.7]} 8... e6 {[%clk 0:02:29.2]} 9. e4 {[%clk 0:02:56.1]} 9... dxe4
{[%clk 0:02:23.1]} 10. Qxd8+ {[%clk 0:02:55.4]} 10... Kxd8 {[%clk 0:02:23.5]}
11. Nxe4 {[%clk 0:02:55.7]} 11... Nxe4 {[%clk 0:02:23.2]} 12. Bxe4 {[%clk
0:02:56.4]} 12... Kc7 {[%clk 0:02:11.6]} 13. c3 {[%clk 0:02:51.7]} 13... b6
{[%clk 0:02:08.4]} 14. Nd4 {[%clk 0:02:47]} 14... Bxd4 {[%clk 0:01:32.3]} 15.
cxd4 {[%clk 0:02:45.3]} 15... Bb7 {[%clk 0:01:31.7]} 16. Bf4+ {[%clk 0:02:44.5]}
16... Kd7 {[%clk 0:01:30.9]} 17. d5 {[%clk 0:02:43.8]} 17... Na5 {[%clk
0:01:18.5]} 18. dxe6+ {[%clk 0:02:38.1]} 18... Kxe6 {[%clk 0:01:16.5]} 19. Bxb7
{[%clk 0:02:25.2]} 19... Nxb7 {[%clk 0:01:17.4]} 20. Rfe1+ {[%clk 0:02:25.6]}
20... Kf5 {[%clk 0:01:11.8]} 21. Re7 {[%clk 0:02:13.1]} 21... Nc5 {[%clk
0:01:11.6]} 22. Rxf7+ {[%clk 0:02:00.6]} 22... Ke6 {[%clk 0:01:11.7]} 23. Rc7
{[%clk 0:01:56]} 23... Nd3 {[%clk 0:01:06.9]} 24. Bh6 {[%clk 0:01:45.9]} 24...
Kd6 {[%clk 0:00:38.7]} 25. Rc2 {[%clk 0:01:36.3]} 25... Nc5 {[%clk 0:00:18.1]}
26. Rd1+ {[%clk 0:01:33.3]} 26... Ke6 {[%clk 0:00:17.7]} 27. b4 {[%clk
0:01:26.6]} 27... Na4 {[%clk 0:00:08.1]} 28. Re2+ {[%clk 0:01:21.7]} 28... Kf6
{[%clk 0:00:06.7]} 29. Rd6+ {[%clk 0:01:17.7]} 29... Kf5 {[%clk 0:00:02]} 30.
Rde6 {[%clk 0:01:09.8]} 1-0

[Event "*** SCC Grand Prix: Titled Tuesday Blitz"]
[Site "Chess.com"]
[Date "2020.07.21"]
[Round "1"]
[White "BilguunSu"]
[Black "Fortitudine"]
[Result "1-0"]
[WhiteElo "2633"]
[BlackElo "2296"]
[TimeControl "180+1"]
[EndTime "10:06:07 PDT"]
[Termination "BilguunSu won by checkmate"]

1. e4 {[%clk 0:03:00.9]} 1... c5 {[%clk 0:02:58]} 2. Nf3 {[%clk 0:03:01.2]} 2...
d6 {[%clk 0:02:57.7]} 3. d4 {[%clk 0:03:01.1]} 3... cxd4 {[%clk 0:02:58.6]} 4.
Nxd4 {[%clk 0:03:00.8]} 4... Nf6 {[%clk 0:02:58.8]} 5. Nc3 {[%clk 0:03:01.4]}
5... Nc6 {[%clk 0:02:58.7]} 6. Nb3 {[%clk 0:02:58.7]} 6... e5 {[%clk 0:02:57.1]}
7. Be2 {[%clk 0:02:58.6]} 7... Be7 {[%clk 0:02:56.8]} 8. Be3 {[%clk 0:02:55.6]}
8... O-O {[%clk 0:02:55.2]} 9. g4 {[%clk 0:02:56.1]} 9... a5 {[%clk 0:02:54.3]}
10. g5 {[%clk 0:02:56.1]} 10... Nd7 {[%clk 0:02:54.4]} 11. h4 {[%clk 0:02:41.6]}
11... a4 {[%clk 0:02:53.8]} 12. Nd2 {[%clk 0:02:42]} 12... a3 {[%clk 0:02:51.3]}
13. bxa3 {[%clk 0:02:41.5]} 13... Rxa3 {[%clk 0:02:34.7]} 14. Nd5 {[%clk
0:02:40.5]} 14... Nc5 {[%clk 0:02:32.5]} 15. Nc4 {[%clk 0:02:31.7]} 15... Rxe3
{[%clk 0:02:21.6]} 16. Ndxe3 {[%clk 0:02:22.9]} 16... Nxe4 {[%clk 0:02:20.8]}
17. Bf3 {[%clk 0:02:22.6]} 17... Nc3 {[%clk 0:01:57]} 18. Qd2 {[%clk 0:02:14.9]}
18... Nb5 {[%clk 0:01:35]} 19. c3 {[%clk 0:02:09.9]} 19... Be6 {[%clk
0:01:30.8]} 20. a4 {[%clk 0:02:06.4]} 20... Nc7 {[%clk 0:01:30.1]} 21. Rd1
{[%clk 0:02:04.4]} 21... Qa8 {[%clk 0:01:13.6]} 22. Nb6 {[%clk 0:02:00.2]} 22...
Qa6 {[%clk 0:01:01.5]} 23. Nbd5 {[%clk 0:01:57.2]} 23... Nxd5 {[%clk 0:00:56.3]}
24. Nxd5 {[%clk 0:01:56.6]} 24... Bxd5 {[%clk 0:00:48.6]} 25. Bxd5 {[%clk
0:01:55.9]} 25... Qxa4 {[%clk 0:00:46.9]} 26. Qe3 {[%clk 0:01:29.3]} 26... Kh8
{[%clk 0:00:20.8]} 27. h5 {[%clk 0:01:23.5]} 27... Qg4 {[%clk 0:00:18]} 28. g6
{[%clk 0:01:18.4]} 28... fxg6 {[%clk 0:00:17.7]} 29. hxg6 {[%clk 0:01:17.1]}
29... Bg5 {[%clk 0:00:11.8]} 30. Rxh7# {[%clk 0:01:14]} 1-0

[Event "*** SCC Grand Prix: Titled Tuesday Blitz"]
[Site "Chess.com"]
[Date "2020.07.21"]
[Round "1"]
[White "biostatistician"]
[Black "Killertoy"]
[Result "0-1"]
[WhiteElo "2560"]
[BlackElo "2235"]
[TimeControl "180+1"]
[EndTime "10:06:11 PDT"]
[Termination "Killertoy won on time"]

1. d4 {[%clk 0:03:00.6]} 1... f5 {[%clk 0:02:59.4]} 2. Nf3 {[%clk 0:03:01.5]}
2... Nf6 {[%clk 0:02:59]} 3. g3 {[%clk 0:03:02.2]} 3... g6 {[%clk 0:02:58.9]} 4.
Bg2 {[%clk 0:03:03.1]} 4... Bg7 {[%clk 0:02:59]} 5. O-O {[%clk 0:03:04]} 5...
O-O {[%clk 0:02:59.3]} 6. b4 {[%clk 0:03:04.7]} 6... d6 {[%clk 0:02:59.8]} 7.
Bb2 {[%clk 0:03:04.9]} 7... c6 {[%clk 0:02:59.7]} 8. Nbd2 {[%clk 0:03:04.4]}
8... a5 {[%clk 0:02:59.5]} 9. a3 {[%clk 0:03:02.9]} 9... axb4 {[%clk 0:02:58.5]}
10. axb4 {[%clk 0:03:03.1]} 10... Rxa1 {[%clk 0:02:59.4]} 11. Qxa1 {[%clk
0:03:04]} 11... Qc7 {[%clk 0:02:58.9]} 12. c4 {[%clk 0:03:03]} 12... Na6 {[%clk
0:02:54.7]} 13. Bc3 {[%clk 0:02:37.2]} 13... Ne4 {[%clk 0:02:50.9]} 14. Nxe4
{[%clk 0:02:32.4]} 14... fxe4 {[%clk 0:02:51.8]} 15. Ng5 {[%clk 0:02:20.4]}
15... d5 {[%clk 0:02:50.7]} 16. b5 {[%clk 0:02:15.7]} 16... Nb8 {[%clk
0:02:46.8]} 17. cxd5 {[%clk 0:01:38.8]} 17... cxd5 {[%clk 0:02:46.3]} 18. Rc1
{[%clk 0:01:39]} 18... h6 {[%clk 0:02:44.2]} 19. Nh3 {[%clk 0:01:31.1]} 19... g5
{[%clk 0:02:37.5]} 20. Ba5 {[%clk 0:01:13.8]} 20... Qd7 {[%clk 0:02:35.5]} 21.
Rc7 {[%clk 0:01:10.6]} 21... Qxb5 {[%clk 0:02:32.4]} 22. Rc5 {[%clk 0:00:23.6]}
22... Qxe2 {[%clk 0:02:18.1]} 23. Rxd5 {[%clk 0:00:14.3]} 23... Nc6 {[%clk
0:02:04.9]} 24. Bc3 {[%clk 0:00:14.1]} 24... Bxh3 {[%clk 0:01:55.7]} 25. Bxh3
{[%clk 0:00:15]} 25... Qxf2+ {[%clk 0:01:55.7]} 26. Kh1 {[%clk 0:00:15.7]} 26...
Qf3+ {[%clk 0:01:56]} 27. Bg2 {[%clk 0:00:15.3]} 27... Qd3 {[%clk 0:01:53.3]}
28. Rd7 {[%clk 0:00:11.6]} 28... b5 {[%clk 0:01:40.7]} 29. Qe1 {[%clk
0:00:03.1]} 29... b4 {[%clk 0:01:31.4]} 30. Bb2 {[%clk 0:00:03]} 30... Nxd4
{[%clk 0:01:24.4]} 0-1

[Event "*** SCC Grand Prix: Titled Tuesday Blitz"]
[Site "Chess.com"]
[Date "2020.07.21"]
[Round "1"]
[White "Klavdia_Nik"]
[Black "SARGISMV"]
[Result "0-1"]
[WhiteElo "2037"]
[BlackElo "2502"]
[TimeControl "180+1"]
[EndTime "10:06:12 PDT"]
[Termination "SARGISMV won on time"]

1. Nf3 {[%clk 0:02:56.9]} 1... Nf6 {[%clk 0:02:58.1]} 2. c4 {[%clk 0:02:56.2]}
2... c5 {[%clk 0:02:57.8]} 3. d4 {[%clk 0:02:53.4]} 3... cxd4 {[%clk 0:02:58.6]}
4. Nxd4 {[%clk 0:02:52.9]} 4... e5 {[%clk 0:02:59]} 5. Nb5 {[%clk 0:02:43.7]}
5... d5 {[%clk 0:02:56.5]} 6. cxd5 {[%clk 0:02:36.9]} 6... Bc5 {[%clk
0:02:51.8]} 7. e3 {[%clk 0:02:28.9]} 7... O-O {[%clk 0:02:49.5]} 8. Be2 {[%clk
0:01:58]} 8... e4 {[%clk 0:02:43.1]} 9. N1c3 {[%clk 0:01:48.5]} 9... Re8 {[%clk
0:02:40.6]} 10. O-O {[%clk 0:01:47.1]} 10... Bf5 {[%clk 0:02:33.3]} 11. Nd4
{[%clk 0:01:43.5]} 11... Bg6 {[%clk 0:02:24]} 12. Nb3 {[%clk 0:01:28.6]} 12...
Bd6 {[%clk 0:02:15.7]} 13. Nb5 {[%clk 0:01:21.9]} 13... Be5 {[%clk 0:02:09.9]}
14. a4 {[%clk 0:01:07.4]} 14... a6 {[%clk 0:02:05.5]} 15. Nc3 {[%clk 0:01:01]}
15... Nbd7 {[%clk 0:02:05.4]} 16. a5 {[%clk 0:00:55.3]} 16... h5 {[%clk
0:02:02.9]} 17. Nd2 {[%clk 0:00:38.9]} 17... Rc8 {[%clk 0:01:51.3]} 18. Nc4
{[%clk 0:00:29.2]} 18... Bb8 {[%clk 0:01:51.3]} 19. Qb3 {[%clk 0:00:18.6]} 19...
Nc5 {[%clk 0:01:47.1]} 20. Qa3 {[%clk 0:00:17.1]} 20... Nxd5 {[%clk 0:01:39]}
21. Nxd5 {[%clk 0:00:15.1]} 21... Qxd5 {[%clk 0:01:38.3]} 22. Nb6 {[%clk
0:00:15.5]} 22... Qe5 {[%clk 0:01:33.7]} 23. g3 {[%clk 0:00:15.2]} 23... Rcd8
{[%clk 0:01:31.8]} 24. Rb1 {[%clk 0:00:13.8]} 24... h4 {[%clk 0:01:30.6]} 25. b4
{[%clk 0:00:13.7]} 25... Nd3 {[%clk 0:01:30]} 26. Nc4 {[%clk 0:00:11.7]} 26...
Qe6 {[%clk 0:01:22.9]} 27. Nd2 {[%clk 0:00:09.5]} 27... Qh3 {[%clk 0:01:19.8]}
28. Qb3 {[%clk 0:00:04.5]} 28... hxg3 {[%clk 0:01:16.1]} 29. fxg3 {[%clk
0:00:03.1]} 29... Bxg3 {[%clk 0:01:16.8]} 30. hxg3 {[%clk 0:00:02.6]} 30...
Qxg3+ {[%clk 0:01:17.7]} 31. Kh1 {[%clk 0:00:02.6]} 31... Qh3+ {[%clk
0:01:12.7]} 32. Kg1 {[%clk 0:00:02.1]} 32... Qxe3+ {[%clk 0:01:13.2]} 0-1

[Event "*** SCC Grand Prix: Titled Tuesday Blitz"]
[Site "Chess.com"]
[Date "2020.07.21"]
[Round "1"]
[White "BeanScreen"]
[Black "MacDaddyMac"]
[Result "0-1"]
[WhiteElo "2700"]
[BlackElo "2377"]
[TimeControl "180+1"]
[EndTime "10:06:13 PDT"]
[Termination "MacDaddyMac won by resignation"]

1. e4 {[%clk 0:03:00.9]} 1... e6 {[%clk 0:02:58.2]} 2. d4 {[%clk 0:02:59.9]}
2... d5 {[%clk 0:02:59.1]} 3. Nc3 {[%clk 0:03:00.5]} 3... Nf6 {[%clk 0:02:58.1]}
4. Bg5 {[%clk 0:03:00.3]} 4... dxe4 {[%clk 0:02:57.5]} 5. Nxe4 {[%clk
0:03:00.6]} 5... Be7 {[%clk 0:02:57.8]} 6. Bxf6 {[%clk 0:03:01]} 6... gxf6
{[%clk 0:02:58]} 7. Nf3 {[%clk 0:03:01.2]} 7... a6 {[%clk 0:02:58.1]} 8. Qe2
{[%clk 0:03:01.1]} 8... b5 {[%clk 0:02:58.3]} 9. O-O-O {[%clk 0:03:01.5]} 9...
Bb7 {[%clk 0:02:58.4]} 10. Kb1 {[%clk 0:02:55.5]} 10... f5 {[%clk 0:02:57.8]}
11. Ng3 {[%clk 0:02:44.4]} 11... Qd5 {[%clk 0:02:57]} 12. Ne5 {[%clk 0:02:42.8]}
12... Nd7 {[%clk 0:02:55.8]} 13. Nxd7 {[%clk 0:02:21]} 13... Qxd7 {[%clk
0:02:54.4]} 14. d5 {[%clk 0:02:21.5]} 14... Bxd5 {[%clk 0:02:52.2]} 15. Qe5
{[%clk 0:02:20.5]} 15... O-O-O {[%clk 0:02:43.5]} 16. Be2 {[%clk 0:02:08]} 16...
Bd6 {[%clk 0:02:43.3]} 17. Qd4 {[%clk 0:02:04.2]} 17... Bb7 {[%clk 0:02:35.2]}
18. Qa7 {[%clk 0:01:52.4]} 18... Qc6 {[%clk 0:02:34.5]} 19. Bf3 {[%clk
0:01:52.4]} 19... Qb6 {[%clk 0:02:34.6]} 20. Bxb7+ {[%clk 0:01:48.8]} 20... Qxb7
{[%clk 0:02:35.5]} 21. Qd4 {[%clk 0:01:47.4]} 21... Bxg3 {[%clk 0:02:29.8]} 22.
Qf6 {[%clk 0:01:44.9]} 22... Bd6 {[%clk 0:02:13.7]} 23. Qxf7 {[%clk 0:01:44.7]}
23... Qe4 {[%clk 0:02:13.3]} 24. Rhe1 {[%clk 0:01:44.2]} 24... Qc4 {[%clk
0:02:12.7]} 25. b3 {[%clk 0:01:43.6]} 25... Qg4 {[%clk 0:02:05.7]} 26. Qxe6+
{[%clk 0:01:43.1]} 26... Kb8 {[%clk 0:02:01.8]} 27. g3 {[%clk 0:01:30.8]} 27...
Rde8 {[%clk 0:01:55.6]} 28. Qd5 {[%clk 0:01:28.9]} 28... Rxe1 {[%clk 0:01:55.3]}
29. Rxe1 {[%clk 0:01:29.8]} 29... Qb4 {[%clk 0:01:47.9]} 30. Re3 {[%clk
0:01:26]} 30... Rd8 {[%clk 0:01:35.8]} 31. Qxf5 {[%clk 0:01:16.7]} 31... Bc5
{[%clk 0:01:30.2]} 32. Rd3 {[%clk 0:01:02.7]} 32... Rxd3 {[%clk 0:01:15.4]} 33.
Qxd3 {[%clk 0:01:00.6]} 33... Bxf2 {[%clk 0:01:10]} 34. Qd8+ {[%clk 0:00:58.7]}
34... Kb7 {[%clk 0:01:09.4]} 35. Qd5+ {[%clk 0:00:58.5]} 35... Ka7 {[%clk
0:01:09.3]} 36. Qd7 {[%clk 0:00:51.2]} 36... Qe1+ {[%clk 0:01:08.4]} 37. Kb2
{[%clk 0:00:51.4]} 37... Qe5+ {[%clk 0:01:08.2]} 38. Kb1 {[%clk 0:00:51.2]}
38... Bd4 {[%clk 0:01:07.7]} 39. c3 {[%clk 0:00:36.6]} 39... Qe1+ {[%clk
0:01:02.2]} 40. Kc2 {[%clk 0:00:36.4]} 40... Qxc3+ {[%clk 0:01:01.5]} 41. Kd1
{[%clk 0:00:36.7]} 41... Qd3+ {[%clk 0:01:01.9]} 0-1

[Event "*** SCC Grand Prix: Titled Tuesday Blitz"]
[Site "Chess.com"]
[Date "2020.07.21"]
[Round "1"]
[White "DishonorOnYourCow"]
[Black "frederiksvane"]
[Result "0-1"]
[WhiteElo "2328"]
[BlackElo "2670"]
[TimeControl "180+1"]
[EndTime "10:06:14 PDT"]
[Termination "frederiksvane won by resignation"]

1. d4 {[%clk 0:02:59.2]} 1... Nf6 {[%clk 0:03:00.1]} 2. c4 {[%clk 0:02:58.4]}
2... e6 {[%clk 0:02:58.9]} 3. Nf3 {[%clk 0:02:55.2]} 3... d5 {[%clk 0:02:57.3]}
4. Nc3 {[%clk 0:02:54.5]} 4... Be7 {[%clk 0:02:57]} 5. Bf4 {[%clk 0:02:53.6]}
5... O-O {[%clk 0:02:56.7]} 6. e3 {[%clk 0:02:53.8]} 6... Nbd7 {[%clk
0:02:56.9]} 7. Bd3 {[%clk 0:02:52]} 7... c5 {[%clk 0:02:54.2]} 8. cxd5 {[%clk
0:02:51.6]} 8... exd5 {[%clk 0:02:55.1]} 9. O-O {[%clk 0:02:51.3]} 9... a6
{[%clk 0:02:51.8]} 10. dxc5 {[%clk 0:02:46.8]} 10... Nxc5 {[%clk 0:02:52.7]} 11.
Bc2 {[%clk 0:02:47]} 11... Bg4 {[%clk 0:02:48.6]} 12. h3 {[%clk 0:02:42.8]}
12... Bh5 {[%clk 0:02:47.9]} 13. Bg5 {[%clk 0:02:22.6]} 13... Rc8 {[%clk
0:02:32.4]} 14. Bxf6 {[%clk 0:02:11]} 14... Bxf6 {[%clk 0:02:32.6]} 15. Qxd5
{[%clk 0:02:04]} 15... Bxc3 {[%clk 0:02:08.2]} 16. Bxh7+ {[%clk 0:01:41.1]}
16... Kxh7 {[%clk 0:02:05.6]} 17. Qxh5+ {[%clk 0:01:40.8]} 17... Kg8 {[%clk
0:02:03.6]} 18. bxc3 {[%clk 0:01:27.8]} 18... Ne6 {[%clk 0:01:59.6]} 19. Rad1
{[%clk 0:01:18.6]} 19... Qe7 {[%clk 0:01:51.5]} 20. Ne5 {[%clk 0:01:06.6]} 20...
Rc5 {[%clk 0:01:29.1]} 21. f4 {[%clk 0:00:38.1]} 21... Rd8 {[%clk 0:00:58.6]}
22. Rxd8+ {[%clk 0:00:36.4]} 22... Nxd8 {[%clk 0:00:59.5]} 23. Rd1 {[%clk
0:00:33.2]} 23... f6 {[%clk 0:00:59.8]} 24. Ng6 {[%clk 0:00:29]} 24... Qxe3+
{[%clk 0:00:59.3]} 25. Kh2 {[%clk 0:00:26.4]} 25... Rxh5 {[%clk 0:00:59.3]} 26.
Rxd8+ {[%clk 0:00:21.3]} 26... Kf7 {[%clk 0:00:54.4]} 27. f5 {[%clk 0:00:10.5]}
27... Rxf5 {[%clk 0:00:52.9]} 28. Nh8+ {[%clk 0:00:10.2]} 28... Ke7 {[%clk
0:00:53]} 29. Rg8 {[%clk 0:00:06.7]} 29... Qe5+ {[%clk 0:00:53]} 0-1

[Event "*** SCC Grand Prix: Titled Tuesday Blitz"]
[Site "Chess.com"]
[Date "2020.07.21"]
[Round "1"]
[White "GOGIEFF"]
[Black "ljuks68"]
[Result "1-0"]
[WhiteElo "2898"]
[BlackElo "2440"]
[TimeControl "180+1"]
[EndTime "10:06:16 PDT"]
[Termination "GOGIEFF won on time"]

1. d4 {[%clk 0:02:59.8]} 1... d5 {[%clk 0:02:59.3]} 2. c4 {[%clk 0:02:53.2]}
2... c6 {[%clk 0:02:59.2]} 3. Nc3 {[%clk 0:02:52.5]} 3... Nf6 {[%clk 0:02:59.3]}
4. Nf3 {[%clk 0:02:52.1]} 4... dxc4 {[%clk 0:02:59.3]} 5. a4 {[%clk 0:02:51.5]}
5... Bf5 {[%clk 0:02:58.9]} 6. e3 {[%clk 0:02:51.2]} 6... e6 {[%clk 0:02:58.3]}
7. Bxc4 {[%clk 0:02:51]} 7... Bb4 {[%clk 0:02:58.7]} 8. O-O {[%clk 0:02:51]}
8... Nbd7 {[%clk 0:02:58.7]} 9. Qe2 {[%clk 0:02:51.4]} 9... O-O {[%clk
0:02:58.5]} 10. e4 {[%clk 0:02:51.6]} 10... Bg4 {[%clk 0:02:58.8]} 11. Bf4
{[%clk 0:02:40.5]} 11... Qa5 {[%clk 0:02:34.2]} 12. h3 {[%clk 0:02:35.1]} 12...
Bxf3 {[%clk 0:02:32.4]} 13. Qxf3 {[%clk 0:02:33.5]} 13... e5 {[%clk 0:02:32.6]}
14. dxe5 {[%clk 0:02:17.9]} 14... Nxe5 {[%clk 0:02:32]} 15. Qe2 {[%clk
0:02:09.1]} 15... Rae8 {[%clk 0:02:09.3]} 16. Bb3 {[%clk 0:01:54.6]} 16... Ng6
{[%clk 0:01:55.5]} 17. Bd2 {[%clk 0:01:53.9]} 17... Qe5 {[%clk 0:01:34.3]} 18.
f4 {[%clk 0:01:35.5]} 18... Qh5 {[%clk 0:00:21.3]} 19. Qxh5 {[%clk 0:01:23.1]}
19... Nxh5 {[%clk 0:00:20.9]} 20. e5 {[%clk 0:01:08.9]} 20... Ng3 {[%clk
0:00:17.1]} 21. Rfe1 {[%clk 0:01:06.1]} 21... Bxc3 {[%clk 0:00:12.2]} 22. bxc3
{[%clk 0:01:05]} 22... Nh4 {[%clk 0:00:09.8]} 23. Be3 {[%clk 0:01:01.2]} 23...
Nhf5 {[%clk 0:00:06.9]} 24. Bc5 {[%clk 0:01:00.2]} 24... Rd8 {[%clk 0:00:04]}
25. Bxf8 {[%clk 0:00:59.2]} 25... Kxf8 {[%clk 0:00:03.4]} 26. Rad1 {[%clk
0:00:58.9]} 26... Rxd1 {[%clk 0:00:02.4]} 27. Rxd1 {[%clk 0:00:58.7]} 27... Ke7
{[%clk 0:00:02.7]} 28. Re1 {[%clk 0:00:55.7]} 1-0